bitfinex-derivatives/quotes_BTCF0:USTF0_20210706
["timestamp","ask_amount","ask_price","bid_price","bid_amount"]
[1625537526627,3.28568678,33734.0,33733.0,0.003513]
[1625537527228,3.28568678,33734.0,33733.0,0.26577714]
[1625537527630,2.08016036,33734.0,33733.0,0.003513]
[1625537527831,2.13916036,33734.0,33733.0,0.003513]
[1625537528030,3.34474534,33734.0,33733.0,0.003513]
[1625537528281,3.28574534,33734.0,33733.0,0.003513]
[1625537528532,3.28574534,33734.0,33733.0,0.26580032]
[1625537528987,3.28574534,33734.0,33733.0,0.09094211]
[1625537529084,3.34474534,33734.0,33733.0,0.09094211]
[1625537529537,3.28574534,33734.0,33733.0,0.09094211]
[1625537529639,3.28574534,33734.0,33733.0,0.17834307]
[1625537530242,2.08016036,33734.0,33733.0,0.003513]
[1625537530439,2.13916036,33734.0,33733.0,0.003513]
[1625537530592,3.34224141,33734.0,33733.0,0.003513]
[1625537531492,3.28324141,33734.0,33733.0,0.003513]
[1625537531593,3.22424141,33734.0,33733.0,0.313433]
[1625537531691,3.16724141,33734.0,33733.0,0.313433]
[1625537531794,3.16724141,33734.0,33733.0,0.57564435]
[1625537532095,1.96416036,33734.0,33733.0,1.01262868]
[1625537532194,1.96416036,33734.0,33733.0,1.07162868]
[1625537532495,0.24057544,33734.0,33733.0,2.12031297]
[1625537532694,0.35657544,33734.0,33733.0,2.12031297]
[1625537532847,0.35657544,33734.0,33733.0,2.06131297]
[1625537533446,0.29957544,33734.0,33733.0,2.06131297]
[1625537533547,0.29957544,33734.0,33733.0,2.12031297]
[1625537533747,0.35657544,33734.0,33733.0,2.12031297]
[1625537533901,0.29957544,33734.0,33733.0,2.12031297]
[1625537534555,0.29957544,33734.0,33733.0,3.34374397]
[1625537534556,0.55796477,33734.0,33733.0,3.34374397]
[1625537536616,0.29957544,33734.0,33733.0,2.12031297]
[1625537537971,0.29957544,33734.0,33733.0,2.06131297]
[1625537538771,0.9876844,33734.0,33733.0,2.06131297]
[1625537539073,1.3191144,33734.0,33733.0,2.06131297]
[1625537539525,1.3191144,33734.0,33733.0,1.01262868]
[1625537539526,2.35077704,33734.0,33733.0,1.01262868]
[1625537539624,2.35077704,33734.0,33733.0,0.70270868]
[1625537539977,2.35077704,33734.0,33733.0,0.003513]
[1625537541833,2.35077704,33734.0,33733.0,0.70273251]
[1625537542832,2.29177704,33734.0,33733.0,0.70273251]
[1625537542933,2.35077704,33734.0,33733.0,0.70273251]
[1625537543284,2.35077704,33734.0,33733.0,0.003513]
[1625537543385,2.29177704,33734.0,33733.0,0.003513]
[1625537545240,2.29177704,33734.0,33733.0,0.70279373]
[1625537547143,2.35077704,33734.0,33733.0,0.70279373]
[1625537547645,2.35077704,33734.0,33733.0,0.003513]
[1625537547948,3.55991734,33734.0,33733.0,0.003513]
[1625537548347,3.55991734,33734.0,33733.0,0.7029342]
[1625537548748,2.35077704,33734.0,33733.0,0.7029342]
[1625537549449,3.5599472,33734.0,33733.0,0.7029342]
[1625537549953,2.35077704,33734.0,33733.0,0.7029342]
[1625537550805,3.56021948,33734.0,33733.0,0.7029342]
[1625537551207,3.56021948,33734.0,33733.0,0.003513]
[1625537551761,3.56021948,33734.0,33733.0,0.70305317]
[1625537554417,3.56021948,33734.0,33733.0,0.003513]
[1625537554918,4.94336613,33734.0,33733.0,0.003513]
[1625537555020,5.00236613,33734.0,33733.0,0.003513]
[1625537555518,4.94336613,33734.0,33733.0,0.003513]
[1625537555719,5.00236613,33734.0,33733.0,0.003513]
[1625537555971,5.00236613,33734.0,33733.0,0.09099213]
[1625537556673,5.00236613,33734.0,33733.0,0.003513]
[1625537557877,6.55754026,33734.0,33733.0,0.003513]
[1625537559082,5.00236613,33734.0,33733.0,0.003513]
[1625537559485,6.55811153,33734.0,33733.0,0.003513]
[1625537572099,6.55811153,33734.0,33733.0,0.09113332]
[1625537573056,6.55811153,33734.0,33733.0,0.26638419]
[1625537574107,6.55811153,33734.0,33733.0,0.09113332]
[1625537575413,6.55811153,33734.0,33733.0,0.003513]
[1625537578220,6.57354855,33734.0,33733.0,0.003513]
[1625537580575,6.57354855,33734.0,33732.0,0.00351373]
[1625537580826,0.70544246,33734.0,33733.0,0.00351376]
[1625537581029,0.69000544,33734.0,33733.0,0.00351376]
[1625537581128,6.57228057,33734.0,33733.0,0.00351376]
[1625537581328,6.58771785,33734.0,33731.0,0.00351376]
[1625537581427,0.29757544,33732.0,33731.0,0.00351376]
[1625537581530,0.41557544,33732.0,33731.0,0.00351376]
[1625537581828,6.31322218,33732.0,33731.0,0.00351376]
[1625537582128,6.29778486,33732.0,33731.0,0.00351376]
[1625537582378,6.31322206,33732.0,33731.0,0.00351376]
[1625537582629,6.29778486,33732.0,33731.0,0.00351376]
[1625537583180,11.15392247,33732.0,33731.0,0.00351376]
[1625537583430,11.13848486,33732.0,33731.0,0.00351376]
[1625537583681,11.15392247,33732.0,33731.0,0.00351376]
[1625537589089,11.15392247,33732.0,33729.0,0.26280492]
[1625537589090,11.15392247,33732.0,33730.0,0.00351406]
[1625537589189,0.0877,33731.0,33730.0,0.00351406]
[1625537589290,0.16213807,33731.0,33730.0,0.00351406]
[1625537589392,6.16060618,33731.0,33730.0,0.00351406]
[1625537593801,6.16060618,33731.0,33728.0,0.26277046]
[1625537593802,6.16060618,33731.0,33729.0,0.00351417]
[1625537594053,0.01543851,33730.0,33729.0,0.00351417]
[1625537594252,3.36101574,33730.0,33729.0,0.00351417]
[1625537594351,6.07161825,33730.0,33729.0,0.00351417]
[1625537595802,0.19043851,33730.0,33729.0,0.00351417]
[1625537595904,2.26626604,33730.0,33729.0,0.00351417]
[1625537596101,2.25082753,33730.0,33729.0,0.00351417]
[1625537596204,6.05625809,33730.0,33728.0,0.00351429]
[1625537596602,0.0154428,33729.0,33728.0,0.00351429]
[1625537596702,6.01311889,33729.0,33728.0,0.00351429]
[1625537596801,6.07211889,33729.0,33728.0,0.00351429]
[1625537597402,6.05667609,33729.0,33728.0,0.00351429]
[1625537598206,6.072119,33729.0,33728.0,0.00351429]
[1625537599815,6.072119,33729.0,33727.0,0.00351435]
[1625537600065,6.05667609,33729.0,33727.0,0.00351435]
[1625537600165,5.93896937,33728.0,33727.0,0.00351435]
[1625537600266,6.05696937,33728.0,33727.0,0.00351435]
[1625537601168,6.05696937,33728.0,33726.0,0.07336304]
[1625537601372,0.01544315,33727.0,33726.0,0.07336304]
[1625537601470,0.26912315,33727.0,33726.0,0.07336304]
[1625537601569,0.92527403,33727.0,33726.0,0.07336304]
[1625537601819,6.80415686,33727.0,33722.0,0.94151394]
[1625537601920,6.80415686,33727.0,33726.0,0.00351435]
[1625537602221,6.78871371,33727.0,33723.0,0.00351435]
[1625537602320,1.55642013,33725.0,33723.0,0.00351435]
[1625537602421,1.61542013,33725.0,33723.0,0.00351435]
[1625537602521,0.057,33724.0,33723.0,0.00351435]
[1625537602721,4.49822681,33724.0,33723.0,0.00351435]
[1625537603272,6.05410692,33724.0,33723.0,0.00351435]
[1625537603523,6.29468236,33724.0,33723.0,0.00351435]
[1625537603623,4.73880225,33724.0,33723.0,0.00351435]
[1625537604925,5.25759422,33724.0,33723.0,0.00351435]
[1625537605577,5.25759422,33724.0,33723.0,0.52908564]
[1625537606330,5.25759422,33724.0,33723.0,0.00351435]
[1625537607583,6.81283224,33724.0,33723.0,0.00351435]
[1625537608335,6.81283224,33724.0,33723.0,1.435e-05]
[1625537608434,6.81283224,33724.0,33721.0,0.52557549]
[1625537608435,6.82828938,33724.0,33721.0,0.52557549]
[1625537608539,6.82828938,33724.0,33717.0,0.24057544]
[1625537608787,4.8335491,33718.0,33717.0,0.24057544]
[1625537608884,5.1299991,33718.0,33717.0,0.24057544]
[1625537608986,5.2479991,33718.0,33717.0,0.24057544]
[1625537609234,5.2479991,33718.0,33717.0,0.24409038]
[1625537609635,5.48857454,33718.0,33717.0,0.24409038]
[1625537609736,9.73177454,33718.0,33717.0,0.24409038]
[1625537609937,9.82077454,33718.0,33717.0,0.24409038]
[1625537610337,9.73177454,33718.0,33717.0,0.24409038]
[1625537611541,9.73177454,33718.0,33717.0,0.21509038]
[1625537611639,9.73177454,33718.0,33717.0,0.00351494]
[1625537611740,9.73177454,33718.0,33715.0,0.52553201]
[1625537611741,9.73177454,33718.0,33715.0,0.33604695]
[1625537612041,5.43157454,33718.0,33715.0,0.33604695]
[1625537612141,5.37257454,33718.0,33715.0,0.33604695]
[1625537612242,5.86401252,33716.0,33710.0,0.94105702]
[1625537612442,5.92301252,33716.0,33710.0,0.94105702]
[1625537612541,5.92301252,33716.0,33710.0,5.80275702]
[1625537612642,1.72499304,33712.0,33711.0,1.39008011]
[1625537612941,1.72499304,33712.0,33711.0,2.09012377]
[1625537613042,1.72499304,33712.0,33711.0,2.0936389]
[1625537613595,1.72499304,33712.0,33711.0,2.33421434]
[1625537614444,0.69003171,33712.0,33711.0,2.33421434]
[1625537616146,1.72584093,33712.0,33711.0,2.33421434]
[1625537616699,0.69003171,33712.0,33711.0,2.33421434]
[1625537617297,1.03559533,33713.0,33711.0,2.33421434]
[1625537617298,1.25497544,33718.0,33711.0,2.33421434]
[1625537617398,1.46197544,33718.0,33711.0,2.33421434]
[1625537617598,1.46197544,33718.0,33716.0,0.24057544]
[1625537618202,5.86543949,33717.0,33716.0,0.24057544]
[1625537618301,6.18004949,33717.0,33716.0,0.24057544]
[1625537618400,6.29804949,33717.0,33716.0,0.24057544]
[1625537618501,4.74548896,33717.0,33716.0,0.24057544]
[1625537618653,4.74548896,33717.0,33711.0,0.58057544]
[1625537618953,4.74548896,33717.0,33712.0,0.0035153]
[1625537619455,4.74548896,33717.0,33711.0,0.58057544]
[1625537619556,4.74548896,33717.0,33711.0,0.24057544]
[1625537619557,2.98847448,33713.0,33711.0,0.24057544]
[1625537619655,0.24057544,33712.0,33711.0,0.24057544]
[1625537619755,0.29957544,33712.0,33711.0,0.24057544]
[1625537619855,0.29957544,33712.0,33711.0,0.58057544]
[1625537619955,3.23138423,33712.0,33711.0,0.58409087]
[1625537620404,3.28838423,33712.0,33711.0,0.58409087]
[1625537620504,3.28838423,33712.0,33711.0,0.58057544]
[1625537620706,3.37678423,33712.0,33711.0,0.58057544]
[1625537620806,3.31978423,33712.0,33711.0,0.58057544]
[1625537621458,3.37678423,33712.0,33711.0,0.58057544]
[1625537621913,3.31978423,33712.0,33711.0,0.58057544]
[1625537622915,3.37678423,33712.0,33711.0,0.58057544]
[1625537624120,4.7548289,33712.0,33711.0,0.58057544]
[1625537624574,3.37678423,33712.0,33711.0,0.58057544]
[1625537625370,8.21478423,33712.0,33711.0,0.58057544]
[1625537626975,8.27378423,33712.0,33711.0,0.58057544]
[1625537627925,8.27378423,33712.0,33711.0,0.34]
[1625537628127,9.6508649,33712.0,33711.0,0.2659]
[1625537628927,4.7538649,33712.0,33711.0,0.2659]
[1625537629027,4.6654649,33712.0,33711.0,0.2659]
[1625537629231,4.5494649,33712.0,33711.0,0.2659]
[1625537629428,4.5494649,33712.0,33711.0,0.26941541]
[1625537629681,4.6084649,33712.0,33711.0,0.75056629]
[1625537629982,0.98946352,33712.0,33711.0,0.75056629]
[1625537631332,2.02271982,33712.0,33711.0,0.75056629]
[1625537632186,2.30502982,33712.0,33711.0,0.75056629]
[1625537632936,2.36402982,33712.0,33711.0,0.75056629]
[1625537633939,2.30502982,33712.0,33711.0,0.75056629]
[1625537634138,2.36402982,33712.0,33711.0,0.75056629]
[1625537634489,2.42102982,33712.0,33711.0,0.75056629]
[1625537635091,3.62483832,33712.0,33711.0,0.75056629]
[1625537635991,3.50883832,33712.0,33711.0,0.75056629]
[1625537636391,2.30502982,33712.0,33711.0,0.75056629]
[1625537636491,2.02271982,33712.0,33711.0,0.75056629]
[1625537637143,2.08171982,33712.0,33711.0,0.75056629]
[1625537637745,2.02271982,33712.0,33711.0,0.75056629]
[1625537637945,2.08171982,33712.0,33711.0,0.75056629]
[1625537638197,2.02271982,33712.0,33711.0,0.75056629]
[1625537638297,0.98946352,33712.0,33711.0,0.98232629]
[1625537638697,0.29957544,33712.0,33711.0,0.98232629]
[1625537639898,0.059,33712.0,33711.0,0.98232629]
[1625537640000,0.059,33712.0,33711.0,0.75056629]
[1625537641201,0.118,33712.0,33711.0,0.75056629]
[1625537641654,1.83902291,33712.0,33711.0,0.75056629]
[1625537641955,2.07959835,33712.0,33711.0,0.75056629]
[1625537642705,2.02059835,33712.0,33711.0,0.75056629]
[1625537643908,1.78002291,33712.0,33711.0,0.75056629]
[1625537644211,1.83902291,33712.0,33711.0,0.75056629]
[1625537644315,0.80644358,33712.0,33711.0,0.75056629]
[1625537644814,0.80644358,33712.0,33711.0,1.05685629]
[1625537647470,0.74744358,33712.0,33711.0,1.05685629]
[1625537648274,0.74744358,33712.0,33711.0,1.40639313]
[1625537650027,0.059,33712.0,33711.0,1.05685629]
[1625537650530,0.68790543,33713.0,33711.0,1.05685629]
[1625537650728,0.68836023,33712.0,33711.0,1.75616617]
[1625537650927,0.68836023,33712.0,33711.0,1.75265076]
[1625537651028,0.74736023,33712.0,33711.0,1.75265076]
[1625537651227,0.74736023,33712.0,33711.0,1.75616611]
[1625537651680,1.77950462,33712.0,33711.0,1.40652067]
[1625537651980,1.72050462,33712.0,33711.0,1.40652067]
[1625537654737,2.92451091,33712.0,33711.0,1.40652067]
[1625537654837,2.92451091,33712.0,33711.0,1.10023067]
[1625537656441,2.92451091,33712.0,33711.0,0.75056623]
[1625537658946,2.92451091,33712.0,33711.0,1.45100422]
[1625537659145,2.92451091,33712.0,33711.0,1.18510422]
[1625537659597,2.65861091,33712.0,33711.0,1.18510422]
[1625537660654,4.03614788,33712.0,33711.0,1.18510422]
[1625537661406,4.03614788,33712.0,33711.0,1.27300422]
[1625537661507,4.03614788,33712.0,33711.0,1.18510422]
[1625537661611,4.09514788,33712.0,33711.0,1.18510422]
[1625537661709,2.71761091,33712.0,33711.0,1.18510422]
[1625537662608,4.09569744,33712.0,33711.0,2.23666237]
[1625537662960,4.09569744,33712.0,33711.0,1.18510422]
[1625537664265,4.09569744,33712.0,33711.0,2.23670233]
[1625537665919,4.09569744,33712.0,33711.0,2.23318698]
[1625537666071,4.09569744,33712.0,33711.0,2.23670219]
[1625537668774,4.09569744,33712.0,33711.0,3.46508163]
[1625537671182,4.09569744,33712.0,33711.0,3.79627163]
[1625537673436,4.03669744,33712.0,33711.0,3.79627163]
[1625537676798,4.03669744,33712.0,33711.0,3.46508163]
[1625537677748,4.09369744,33712.0,33711.0,3.46508163]
[1625537678850,4.09369744,33712.0,33711.0,2.98393075]
[1625537680204,4.33427288,33712.0,33711.0,2.98393075]
[1625537681555,4.33427288,33712.0,33711.0,1.75555131]
[1625537681657,4.33427288,33712.0,33711.0,1.96346131]
[1625537682007,4.33427288,33712.0,33711.0,3.19203956]
[1625537682509,4.33427288,33712.0,33711.0,1.96346131]
[1625537682908,4.33427288,33712.0,33711.0,3.19205807]
[1625537684461,4.33427288,33712.0,33711.0,3.43263351]
[1625537687623,4.09369744,33712.0,33711.0,3.43263351]
[1625537688724,4.09369744,33712.0,33711.0,4.83786591]
[1625537693134,4.09369744,33712.0,33711.0,4.89686591]
[1625537694237,4.03669744,33712.0,33711.0,4.89686591]
[1625537695439,4.03669744,33712.0,33711.0,4.90865229]
[1625537695790,2.65861091,33712.0,33711.0,6.48956016]
[1625537695993,2.65861091,33712.0,33711.0,6.54856016]
[1625537696090,2.65861091,33712.0,33711.0,6.55734702]
[1625537696340,1.45460462,33712.0,33711.0,6.55734702]
[1625537696843,0.34808001,33714.0,33711.0,8.31290288]
[1625537697141,0.34808001,33714.0,33712.0,0.02407724]
[1625537697246,0.34808001,33714.0,33712.0,0.14207724]
[1625537697342,0.34808001,33714.0,33713.0,5.27845467]
[1625537697442,0.34808001,33714.0,33713.0,5.33745467]
[1625537697695,0.34808001,33714.0,33713.0,5.34096907]
[1625537698350,0.34820997,33716.0,33713.0,5.34096907]
[1625537698549,0.34820997,33716.0,33715.0,0.48115088]
[1625537698647,0.34820997,33716.0,33715.0,0.54015088]
[1625537698747,0.34820997,33716.0,33715.0,5.81335893]
[1625537698997,0.34820997,33716.0,33715.0,5.81687327]
[1625537700351,0.34792815,33717.0,33715.0,5.81687327]
[1625537700601,0.34792815,33717.0,33716.0,0.25233325]
[1625537700702,0.34792815,33717.0,33716.0,0.31133325]
[1625537700901,0.34792815,33717.0,33716.0,5.57313661]
[1625537702006,0.34792815,33717.0,33716.0,6.09894706]
[1625537702606,0.34792815,33717.0,33716.0,6.03994706]
[1625537702808,0.34792815,33717.0,33716.0,6.09894706]
[1625537703062,0.9574,33718.0,33716.0,6.09894706]
[1625537703260,0.9574,33718.0,33717.0,0.01174938]
[1625537703360,0.9574,33718.0,33717.0,0.07074938]
[1625537703511,0.9574,33718.0,33717.0,0.07426356]
[1625537703612,0.9574,33718.0,33717.0,5.85474792]
[1625537704061,0.9574,33718.0,33717.0,5.85123374]
[1625537704362,0.9574,33718.0,33717.0,5.83948436]
[1625537704812,0.9574,33718.0,33717.0,4.26298863]
[1625537705566,1.0144,33718.0,33717.0,4.20750283]
[1625537705863,1.0734,33718.0,33717.0,4.20750283]
[1625537706565,3.85097415,33718.0,33717.0,1.58000994]
[1625537706966,3.85097415,33718.0,33717.0,1.63900994]
[1625537707270,2.6358397,33718.0,33717.0,2.86469543]
[1625537708016,2.6358397,33718.0,33717.0,1.63900994]
[1625537708766,3.85109671,33718.0,33717.0,1.63900994]
[1625537709420,3.85109671,33718.0,33717.0,1.58000994]
[1625537709526,4.09966671,33718.0,33717.0,1.58000994]
[1625537710120,5.48789165,33718.0,33717.0,0.0035142]
[1625537711172,5.63699165,33718.0,33717.0,0.0035142]
[1625537711274,5.63699165,33718.0,33716.0,0.87542236]
[1625537711472,5.63699165,33718.0,33714.0,1.05050683]
[1625537711473,7.20016031,33718.0,33715.0,0.35020074]
[1625537712023,5.72669052,33716.0,33711.0,0.24057544]
[1625537712124,0.1458,33715.0,33711.0,0.24057544]
[1625537712222,0.2638,33715.0,33711.0,0.24057544]
[1625537712525,4.16583092,33712.0,33711.0,0.24057544]
[1625537712623,4.52240636,33712.0,33711.0,0.24057544]
[1625537712744,4.8219818,33712.0,33711.0,0.24057544]
[1625537712826,4.8219818,33712.0,33711.0,0.24409104]
[1625537713327,4.8219818,33712.0,33711.0,0.24057544]
[1625537715181,6.38315967,33712.0,33711.0,0.24057544]
[1625537716840,4.8219818,33712.0,33711.0,0.24057544]
[1625537717889,6.38336782,33712.0,33711.0,0.47200544]
[1625537718242,4.8219818,33712.0,33711.0,0.47200544]
[1625537718341,4.7629818,33712.0,33711.0,0.47200544]
[1625537718692,4.7629818,33712.0,33711.0,0.82215261]
[1625537719142,4.7629818,33712.0,33711.0,0.47200544]
[1625537719693,4.7039818,33712.0,33711.0,0.47200544]
[1625537720196,5.39909244,33712.0,33711.0,0.82214605]
[1625537720647,5.45809244,33712.0,33711.0,0.82214605]
[1625537720748,5.45809244,33712.0,33711.0,1.34734218]
[1625537721152,5.45809244,33712.0,33711.0,0.47200544]
[1625537721502,5.45809244,33712.0,33711.0,0.82214543]
[1625537725910,5.45809244,33712.0,33711.0,1.34728932]
[1625537726508,5.45809244,33712.0,33711.0,5.22660471]
[1625537726609,5.39909244,33712.0,33711.0,5.22660471]
[1625537727262,5.34209244,33712.0,33711.0,5.22660471]
[1625537727462,4.86094156,33712.0,33711.0,4.87646472]
[1625537727563,4.86094156,33712.0,33711.0,4.93546472]
[1625537727863,4.86094156,33712.0,33711.0,4.99446472]
[1625537727962,2.25738401,33712.0,33711.0,6.74487201]
[1625537728514,0.52081564,33712.0,33711.0,9.37019608]
[1625537728766,0.52081564,33712.0,33711.0,9.61077152]
[1625537729016,0.34852949,33712.0,33711.0,9.61077152]
[1625537729970,0.87107044,33713.0,33711.0,9.61077152]
[1625537730218,0.87107044,33713.0,33712.0,0.00351502]
[1625537730318,0.87107044,33713.0,33712.0,5.02189258]
[1625537730818,0.87107044,33713.0,33712.0,5.26246802]
[1625537731418,0.52270715,33713.0,33712.0,5.26246802]
[1625537731921,0.3483893,33714.0,33712.0,5.26246802]
[1625537732420,0.3483893,33714.0,33713.0,0.00351488]
[1625537732522,0.3483893,33714.0,33713.0,4.96265187]
[1625537735277,0.87102189,33714.0,33713.0,4.96265187]
[1625537736378,0.69685712,33715.0,33713.0,4.96265187]
[1625537736379,0.34860025,33715.0,33713.0,4.96265187]
[1625537736788,0.34860025,33715.0,33714.0,5.14020199]
[1625537736884,0.34860025,33715.0,33714.0,5.14371673]
[1625537736984,0.34860025,33715.0,33714.0,5.20271673]
[1625537738086,0.34862323,33716.0,33714.0,5.20271673]
[1625537738487,0.34862323,33716.0,33715.0,4.90267925]
[1625537738589,0.34862323,33716.0,33715.0,4.96167925]
[1625537739444,1.21913978,33716.0,33715.0,3.56191794]
[1625537743147,0.87092012,33716.0,33715.0,3.56191794]
[1625537744248,0.34840677,33716.0,33715.0,4.9615607]
[1625537744651,0.87115515,33717.0,33715.0,4.9615607]
[1625537744801,0.87115515,33717.0,33716.0,0.24057544]
[1625537744901,0.87115515,33717.0,33716.0,0.29957544]
[1625537744999,0.87115515,33717.0,33716.0,3.79865968]
[1625537745100,0.87115515,33717.0,33716.0,3.80217432]
[1625537745354,0.52264472,33717.0,33716.0,3.80217432]
[1625537746004,0.52264472,33717.0,33716.0,4.09155432]
[1625537748156,0.92795734,33717.0,33716.0,4.09155432]
[1625537748306,0.92795734,33717.0,33716.0,3.80217432]
[1625537748409,1.2759364,33717.0,33716.0,3.74317432]
[1625537749412,2.31791895,33717.0,33716.0,2.51849484]
[1625537750512,2.63222895,33717.0,33716.0,2.51849484]
[1625537755330,2.63222895,33717.0,33716.0,2.5149802]
[1625537755578,2.63222895,33717.0,33716.0,2.518495]
[1625537757432,2.63222895,33717.0,33716.0,1.46876973]
[1625537757835,2.31791895,33717.0,33716.0,1.46876973]
[1625537758385,2.31791895,33717.0,33716.0,2.51869252]
[1625537760892,2.37691895,33717.0,33716.0,2.51869252]
[1625537761593,2.31791895,33717.0,33716.0,2.51869252]
[1625537762042,2.31791895,33717.0,33716.0,2.57769252]
[1625537763051,2.31791895,33717.0,33716.0,2.51869252]
[1625537763145,2.31791895,33717.0,33716.0,2.57769252]
[1625537763245,2.31791895,33717.0,33716.0,2.51869252]
[1625537763345,2.31791895,33717.0,33716.0,2.57769252]
[1625537763649,2.31791895,33717.0,33716.0,2.51869252]
[1625537763749,2.31791895,33717.0,33716.0,2.57769252]
[1625537765604,2.31791895,33717.0,33716.0,2.51869252]
[1625537765803,2.31791895,33717.0,33716.0,2.57769252]
[1625537769061,2.31791895,33717.0,33716.0,2.87294252]
[1625537769161,2.26091895,33717.0,33716.0,2.87294252]
[1625537769260,1.64021895,33717.0,33716.0,2.87294252]
[1625537769362,1.11381895,33717.0,33716.0,3.39347096]
[1625537769462,0.51941895,33717.0,33716.0,3.83735096]
[1625537769563,1.20429526,33719.0,33716.0,3.83735096]
[1625537769663,0.51626897,33718.0,33716.0,6.46329399]
[1625537769762,0.51626897,33718.0,33717.0,0.01173575]
[1625537769864,0.48206897,33718.0,33717.0,0.02403441]
[1625537769962,0.38446897,33718.0,33717.0,0.02403441]
[1625537770064,0.38446897,33718.0,33717.0,0.52669741]
[1625537770164,0.20506897,33718.0,33717.0,0.96769741]
[1625537770267,0.17066897,33718.0,33717.0,0.96769741]
[1625537770366,1.37597204,33724.0,33717.0,0.96769741]
[1625537770367,0.17245568,33727.0,33717.0,6.47597616]
[1625537770565,0.17245568,33727.0,33718.0,0.0117336]
[1625537770664,0.17245568,33727.0,33718.0,0.0707336]
[1625537770765,0.17245568,33727.0,33726.0,2.62432849]
[1625537770863,0.17245568,33727.0,33726.0,2.92558849]
[1625537770964,0.17245568,33727.0,33726.0,2.98458849]
[1625537771069,2.16290805,33732.0,33726.0,3.70631481]
[1625537771266,2.16290805,33732.0,33726.0,3.70982854]
[1625537771565,2.16290805,33732.0,33727.0,0.0035137]
[1625537771666,2.16290805,33732.0,33727.0,0.1215137]
[1625537771766,2.16290805,33732.0,33728.0,1.28372138]
[1625537771869,2.16290805,33732.0,33728.0,1.34272138]
[1625537772070,2.16290805,33732.0,33729.0,0.0035137]
[1625537772167,2.16290805,33732.0,33729.0,0.0625137]
[1625537772468,0.9566,33732.0,33729.0,0.0625137]
[1625537772568,0.9566,33732.0,33730.0,0.00351355]
[1625537772818,2.16420525,33732.0,33730.0,0.00351355]
[1625537773019,2.16420525,33732.0,33731.0,0.24057544]
[1625537773271,0.9566,33732.0,33731.0,0.24057544]
[1625537773370,0.9566,33732.0,33731.0,0.2440889]
[1625537775072,0.9566,33732.0,33731.0,0.48466434]
[1625537780785,0.9566,33732.0,33731.0,0.54366434]
[1625537781637,1.0431106,33732.0,33731.0,0.54366434]
[1625537784799,0.9566,33732.0,33731.0,0.54366434]
[1625537785200,1.04316197,33732.0,33731.0,0.54366434]
[1625537785851,0.9566,33732.0,33731.0,0.54366434]
[1625537786603,1.0431694,33732.0,33731.0,0.54366434]
[1625537787055,1.0431694,33732.0,33731.0,0.60266434]
[1625537787455,0.9566,33732.0,33731.0,0.60266434]
[1625537796832,0.9566,33732.0,33731.0,0.93315434]
[1625537800490,0.9566,33732.0,33731.0,1.97986879]
[1625537800993,0.9566,33732.0,33731.0,3.20094839]
[1625537801895,0.9566,33732.0,33731.0,3.14194839]
[1625537802095,0.9566,33732.0,33731.0,3.20094839]
[1625537802195,0.9566,33732.0,33731.0,3.14194839]
[1625537803048,0.9566,33732.0,33731.0,1.92086879]
[1625537805205,0.9566,33732.0,33731.0,1.97986879]
[1625537805307,0.9566,33732.0,33731.0,3.20079714]
[1625537805506,0.9566,33732.0,33731.0,3.14179714]
[1625537805805,0.9566,33732.0,33731.0,3.20079714]
[1625537805906,0.9566,33732.0,33731.0,3.14179714]
[1625537806457,0.9566,33732.0,33731.0,1.92086879]
[1625537808060,0.9566,33732.0,33731.0,1.97986879]
[1625537809010,0.9566,33732.0,33731.0,1.92086879]
[1625537812318,1.0136,33732.0,33731.0,1.92086879]
[1625537812517,0.9566,33732.0,33731.0,1.92086879]
[1625537812617,0.9566,33732.0,33731.0,1.97986879]
[1625537812717,0.9566,33732.0,33731.0,1.92086879]
[1625537812923,1.0136,33732.0,33731.0,3.14231599]
[1625537813419,1.0136,33732.0,33731.0,1.92086879]
[1625537815926,1.0136,33732.0,33731.0,3.14275447]
[1625537821186,1.0136,33732.0,33731.0,3.20175447]
[1625537821587,1.0136,33732.0,33731.0,3.14275447]
[1625537822088,1.0136,33732.0,33731.0,4.60005672]
[1625537822387,1.0136,33732.0,33731.0,4.60883901]
[1625537822488,1.0136,33732.0,33731.0,4.54983901]
[1625537822789,1.0136,33732.0,33731.0,4.60883901]
[1625537823388,1.0136,33732.0,33731.0,4.54983901]
[1625537823489,1.0136,33732.0,33731.0,4.60883901]
[1625537825695,1.0136,33732.0,33731.0,6.18422446]
[1625537827550,1.0136,33732.0,33731.0,6.19597651]
[1625537827851,1.10039183,33732.0,33731.0,6.19597651]
[1625537829707,1.0136,33732.0,33731.0,6.89735827]
[1625537831612,1.0136,33732.0,33731.0,6.88857598]
[1625537832417,1.0136,33732.0,33731.0,6.89735811]
[1625537833470,1.0136,33732.0,33731.0,6.88857598]
[1625537834525,1.0136,33732.0,33731.0,6.89735809]
[1625537835073,1.0136,33732.0,33731.0,6.88857598]
[1625537835927,1.70703964,33732.0,33731.0,6.88857598]
[1625537837177,1.0136,33732.0,33731.0,6.88857598]
[1625537837629,1.70741821,33732.0,33731.0,6.88857598]
[1625537840989,1.70741821,33732.0,33731.0,6.89735805]
[1625537841489,1.70741821,33732.0,33731.0,6.88857598]
[1625537841946,1.70741821,33732.0,33731.0,6.82957598]
[1625537842040,2.03733821,33732.0,33731.0,6.77057598]
[1625537842141,2.03733821,33732.0,33731.0,6.44008598]
[1625537842242,2.09633821,33732.0,33731.0,6.44008598]
[1625537842341,2.09633821,33732.0,33731.0,6.42833393]
[1625537842541,2.09633821,33732.0,33731.0,4.85294848]
[1625537842542,9.5927244,33732.0,33731.0,4.85294848]
[1625537843545,9.5927244,33732.0,33731.0,3.45464623]
[1625537843846,10.07387528,33732.0,33731.0,3.45464623]
[1625537843946,11.63563675,33732.0,33731.0,3.45464623]
[1625537844197,11.63563675,33732.0,33731.0,2.23276055]
[1625537844601,10.07387528,33732.0,33731.0,2.23276055]
[1625537845000,11.63502383,33732.0,33731.0,2.23276055]
[1625537846403,10.07387528,33732.0,33731.0,2.23276055]
[1625537847608,11.63536563,33732.0,33731.0,2.23276055]
[1625537848660,11.63536563,33732.0,33731.0,1.1860461]
[1625537848661,10.07387528,33732.0,33731.0,1.1860461]
[1625537850013,11.63474254,33732.0,33731.0,1.1860461]
[1625537850413,10.07387528,33732.0,33731.0,1.1860461]
[1625537852670,10.07387528,33732.0,33731.0,0.48466434]
[1625537854921,11.62714287,33732.0,33731.0,0.57226765]
[1625537855323,11.62714287,33732.0,33731.0,0.08766765]
[1625537855522,7.77674287,33732.0,33731.0,0.08766765]
[1625537855621,7.71774287,33732.0,33731.0,0.08766765]
[1625537856075,7.71774287,33732.0,33731.0,3.83926765]
[1625537856624,6.16447528,33732.0,33731.0,3.75166434]
[1625537857124,6.16447528,33732.0,33731.0,3.83925066]
[1625537858229,6.16447528,33732.0,33731.0,3.75166434]
[1625537858631,6.16447528,33732.0,33731.0,6.434e-05]
[1625537859782,6.6816411,33732.0,33731.0,1.22594756]
[1625537862191,6.6816411,33732.0,33731.0,1.22946122]
[1625537862442,6.6816411,33732.0,33731.0,0.003578]